Workbook

Sheet Cover
D18: This tool was developed by the NECN and GSK on behalf of the Pharmaceutical Industry Partnership Group (PIPG)

Sheet Introduction
D2: New Drug Capacity Calculator
D8: Click on the blue buttons below to navigate to the specific page of the New Drug Capacity Calculator.
C18: The draft NHS standard specification template for adult systemic anti-cancer therapy services (December 2012)1 specifies that the pathway of care for any chemotherapy patient will need to ensure that the provider services have capacity (in terms of oncology pharmacists and technical pharmacy staff and chairs) for checking prescriptions, reconstitution, and deliver of chemotherapy drugs.
C19: 1Draft NHS Standard specification template for adult systemic anti-cancer therapy services, December 2012
C20: https://www.engage.england.nhs.uk/consultation/ssc-area-b/supporting_documents/b3lservicespec.pdf
C21: Accessed January 2015
C24: Costs and savings figures used in the model are for illustrative purposes only and the user's attention is drawn to the fact that outputs from the model are subject to a) the assumptions described within the model and b) the data that the user selects or decides to input into the model. GSK and NHS England accept no liability for losses arising, directly or indirectly, from the use of the model or its output. GSK and NHS England make no representation or warranty as to the suitability of the output of the model for any particular purpose.

Sheet Chemotherapy Pathway
B2: CHEMOTHERAPY PATHWAY*
B4: For information only, no data input required on this sheet
D6: The New Drug Capacity Calculator estimates pharmacy capacity (staff and isolator time), oncology nurse capacity and oncology chair time associated with treating a cohort of patients with a new regimen of cancer drugs
D43: Calculate pharmacy capacity (isolator time and WTE) | U43: Calculate oncology nurse capacity | AD43: Calculate oncology chair time
C48: WTE = Whole Time Equivalent
C50: Key
E52: Areas of the pathway where capacity will be calculated
E54: Areas of the pathway that will NOT be included in the capacity calculations
B58: * | C58: Sample pathway as described in the draft NHS standard specification template for adult systemic anti-cancer therapy services, December 2012.
C59: https://www.engage.england.nhs.uk/consultation/ssc-area-b/supporting_documents/b3lservicespec.pdf
C60: Accessed January 2015
C62: For current service specification refer to NHS England Chemotherapy CRG webpage.
C63: http://www.england.nhs.uk/commissioning/spec-services/npc-crg/group-b/b15/
C64: Acessed January 2015

Sheet Treatment Plan
D2: CALCULATE CHEMOTHERAPY DELIVERY TIME FOR COHORT OF PATIENTS FOR ONE YEAR
H4: Detailed treatment plan (per patient)
F6: Step 1: Select, drug type, route, infusion type and times using the drop-down buttons
C8: Is Cycle 1 different? | H8: If Cycle 1 is different from subsequent cycles select "Yes" and complete Tables 1a and 1b. If Cycle 1 is the same as subsequent cycles select "No" and complete Table 1b only. Select "No" to set the totals in Table 1a to zero. | AI8: To be hidden in final version | AR8: LINKED CELLS
AD10: To be hidden in final version
F11: Table 1a | G11: Drug type | H11: Route | I11: Infusion type | J11: Infusion time (mins) | K11: Observation time (mins) | L11: Administrations per cycle | AD11: Infusion Time | AE11: Observation time | AI11: Cycle | AJ11: Drug Type | AK11: Route | AL11: Infusion Type | AM11: Infusion Time | AN11: Observation Time | AR11: Cycle | AS11: Drug Type | AT11: Route | AU11: Infusion Type | AV11: Infusion Time | AW11: Observation Time
D12: First Cycle | F12: Drug 1 | L12: 1 | AD12: =IF(AS12="Oral",AV12*0,IF(AS12="None",AV12*0,IF(AS12="Select type",AV12*0,IF(AT12="Oral",AV12*0,IF(AT12="None",AV12*0,IF(AT12="Select route",AV12*0,IF(AU12="None",AV12*0,IF(AU12="Select type",AV12*0,IF(AU12="Not Applicable",AV12*0,AV12))))))))) -> 60 | AE12: =IF(AS12="None",AW12*0,IF(AS12="Select type",AW12*0,IF(AT12="None",AW12*0,IF(AT12="Select route",AW12*0,IF(AU12="None",AW12*0,IF(AU12="Select type",AW12*0,AW12)))))) -> 30 | AI12: Yes | AJ12: Select type | AK12: Select route | AL12: Select type | AM12: 0 | AN12: 0 | AR12: Yes | AS12: MAB | AT12: IV Infusion | AU12: Infusion bag | AV12: 60 | AW12: 30
F13: Drug 2 | L13: 1 | AD13: =IF(AS13="Oral",AV13*0,IF(AS13="None",AV13*0,IF(AS13="Select type",AV13*0,IF(AT13="Oral",AV13*0,IF(AT13="None",AV13*0,IF(AT13="Select route",AV13*0,IF(AU13="None",AV13*0,IF(AU13="Select type",AV13*0,IF(AU13="Not Applicable",AV13*0,AV13))))))))) -> 90 | AE13: =IF(AS13="None",AW13*0,IF(AS13="Select type",AW13*0,IF(AT13="None",AW13*0,IF(AT13="Select route",AW13*0,IF(AU13="None",AW13*0,IF(AU13="Select type",AW13*0,AW13)))))) -> 30 | AI13: No | AJ13: None | AK13: None | AL13: None | AM13: 5 | AN13: 15 | AR13: Yes | AS13: MAB | AT13: IV Infusion | AU13: Infusion bag | AV13: 90 | AW13: 30
F14: Drug 3 | L14: 0 | AD14: 0 | AE14: 0 | AJ14: MAB | AK14: Oral | AL14: Infusion bag | AM14: 10 | AN14: 30 | AS14: None | AT14: None | AU14: None | AV14: 0 | AW14: 0
F15: Drug 4 | L15: 0 | AD15: 0 | AE15: 0 | AJ15: Oral | AK15: Sub-cut | AL15: Ready made infusion bag | AM15: 15 | AN15: 45 | AS15: None | AT15: None | AU15: None | AV15: 0 | AW15: 0
F16: Drug 5 | L16: 0 | AD16: 0 | AE16: 0 | AJ16: IV | AK16: IV Bolus | AL16: Syringe | AM16: 30 | AN16: 60 | AS16: None | AT16: None | AU16: None | AV16: 0 | AW16: 0
F17: Drug 6 | L17: 0 | AD17: 0 | AE17: 0 | AK17: IV Infusion | AL17: Ready made syringe | AM17: 45 | AN17: 90 | AS17: None | AT17: None | AU17: None | AV17: 0 | AW17: 0
F18: Time for first cycle | J18: =AD19 -> 150 | K18: =AE19 -> 60 | AD18: =(AD12*L12)+(AD13*L13)+(AD14*L14)+(AD15*L15)+(AD16*L16)+(AD17*L17) -> 150 | AE18: =(AE12*L12)+(AE13*L13)+(AE14*L14)+(AE15*L15)+(AE16*L16)+(AE17*L17) -> 60 | AK18: Intrathecal | AL18: Not Applicable | AM18: 60 | AN18: 120
AD19: =IF(AR12 ="No", AD18*0, AD18) -> 150 | AE19: =IF(AR12="No",AE18*0,AE18) -> 60 | AK19: Intramuscular | AM19: 90 | AN19: 150
F20: Table 1b | AM20: 120 | AN20: 180
D21: All or Subsequent Cycles | F21: Drug 1 | L21: 1 | AD21: =IF(AS21="Oral",AV21*0,IF(AS21="None",AV21*0,IF(AS21="Select type",AV21*0,IF(AT21="Oral",AV21*0,IF(AT21="None",AV21*0,IF(AT21="Select route",AV21*0,IF(AU21="None",AV21*0,IF(AU21="Select type",AV21*0,IF(AU21="Not Applicable",AV21*0,AV21))))))))) -> 60 | AE21: =IF(AS21="None",AW21*0,IF(AS21="Select type",AW21*0,IF(AT21="None",AW21*0,IF(AT21="Select route",AW21*0,IF(AU21="None",AW21*0,IF(AU21="Select type",AW21*0,AW21)))))) -> 30 | AM21: 150 | AN21: 240 | AS21: MAB | AT21: IV Infusion | AU21: Infusion bag | AV21: 60 | AW21: 30
F22: Drug 2 | L22: 1 | AD22: 30 | AE22: 0 | AM22: 180 | AN22: 300 | AS22: MAB | AT22: IV Infusion | AU22: Infusion bag | AV22: 30 | AW22: 0
F23: Drug 3 | L23: 0 | AD23: 0 | AE23: 0 | AM23: 240 | AN23: 360 | AS23: None | AT23: None | AU23: None | AV23: 0 | AW23: 0
F24: Drug 4 | L24: 0 | AD24: 0 | AE24: 0 | AM24: 300 | AS24: None | AT24: None | AU24: None | AV24: 0 | AW24: 0
F25: Drug 5 | L25: 0 | AD25: 0 | AE25: 0 | AM25: 360 | AS25: None | AT25: None | AU25: None | AV25: 0 | AW25: 0
F26: Drug 6 | L26: 0 | AD26: 0 | AE26: 0 | AS26: None | AT26: None | AU26: None | AV26: 0 | AW26: 0
F27: Time per cycle for all/ subsequent cycles | J27: =AD28 -> 90 | K27: =AE28 -> 30 | AD27: =(AD21*L21)+(AD22*L22)+(AD23*L23)+(AD24*L24)+(AD25*L25)+(AD26*L26) -> 90 | AE27: =(AE21*L21)+(AE22*L22)+(AE23*L23)+(AE24*L24)+(AE25*L25)+(AE26*L26) -> 30
AD28: =IF(AR13 ="No", AD27*0, AD27) -> 90 | AE28: =IF(AR13="No",AE27*0,AE27) -> 30
C29: Sum the values in table 1b? | H29: Select "No" to set the totals in Table 1b to zero.
F35: Step 2: Individualise treatment plan for one patient
F36: Table 2 | J36: Total time per patient (hours) | AD36: Number of cycles
F37: Enter planned number of cycles | H37: 18 | J37: =(AD37*(J27+K27)+(J18+K18))/60 -> 37.5 | AD37: =IF(AR12="No",planned_cycle,(planned_cycle-1)) -> 17
F41: Step 3. Chemotherapy delivery time for cohort
F42: Table 3 | J42: Total time for cohort
F43: Enter number of patients to be treated per year | H43: 25 | J43: =H43*J37 -> 937.5 | L43: hours
J44: =J43/'Local Assumptions'!D7 -> 125 | L44: days

Sheet Pharmacy Capacity
B2: CALCULATE PHARMACY CAPACITY
B4: Time in the white box for isolator cleaning time can be changed by overtyping, times in the "Variable time" column can be changed using the drop-down buttons. Fixed times and Whole Time Equivalent (WTE) times can be modified by clicking on the hyperlinks below. No other figures should be changed on this sheet.
B6: Type of Item/activity | C6: Number of cycles | D6: Quantity for cohort | E6: Fixed time/ item (min) | F6: Variable time /item (min) | G6: Total time (hours) | H6: Staff time (WTE days) | I6: Isolator time (days) | AG6: To be Hidden in final model | AK6: Column F
B7: PRESCRIPTION VERIFICATION/REVIEW | E7: Step 1 - Select times for prescription verification/review | AK7: Linked cells
B8: Cycle 1 prescription verification/review | C8: 1 | D8: ='Treatment Plan'!no_of_patients -> 25 | E8: N/A | G8: =(D8*AK8)/60 -> 6.25 | H8: =G8/'Local Assumptions'!D31 -> 1.157407407 | I8: N/A | AK8: 15
B9: Subsequent cycles prescription verification/review | C9: ='Treatment Plan'!planned_cycle-1 -> 17 | D9: ='Treatment Plan'!planned_cycle*'Treatment Plan'!no_of_patients-'Pharmacy Capacity'!D8 -> 425 | E9: N/A | G9: =(D9*AK9)/60 -> 56.66666667 | H9: =G9/'Local Assumptions'!D31 -> 10.49382716 | I9: N/A | AF9: Prescription and checks | AG9: Manufacturing | AK9: 8
B10: TOTAL TIME FOR PRESCRIPTION VERIFICATION/ REVIEW FOR THE COHORT | G10: =IF('Treatment Plan'!$J$44=0,0,(SUM('Pharmacy Capacity'!G8:G9))) -> 62.91666667 | H10: =IF('Treatment Plan'!$J$44=0,0,(SUM('Pharmacy Capacity'!H8:H9))) -> 11.65123457 | AF10: 0 | AG10: 0
AF11: 1 | AG11: 5
B12: ADDITIONAL CHECKS | E12: Step 2 - Select time for additional checks | AF12: 2 | AG12: 10
B13: Check blood tests | C13: ='Treatment Plan'!planned_cycle -> 18 | D13: ='Treatment Plan'!planned_cycle*'Treatment Plan'!no_of_patients -> 450 | E13: N/A | G13: =(D13*AK13)/60 -> 0 | H13: =G13/'Local Assumptions'!D31 -> 0 | I13: N/A | AF13: 3 | AG13: 15 | AK13: 0
B14: Other checks | C14: ='Treatment Plan'!planned_cycle -> 18 | D14: ='Treatment Plan'!planned_cycle*'Treatment Plan'!no_of_patients -> 450 | E14: N/A | G14: =(D14*AK14)/60 -> 0 | H14: =G14/'Local Assumptions'!D31 -> 0 | I14: N/A | AF14: 5 | AG14: 25 | AK14: 0
B15: TOTAL TIME FOR ADDITIONAL CHECKS FOR COHORT | G15: =IF('Treatment Plan'!$J$44=0,0,(SUM('Pharmacy Capacity'!G13:G14))) -> 0 | H15: =IF('Treatment Plan'!$J$44=0,0,(SUM('Pharmacy Capacity'!H13:H14))) -> 0 | AF15: 6 | AG15: 30
AF16: 8 | AG16: 45
B17: MANUFACTURING - CYCLE 1 | E17: Step 3 - Select time for manufacturing each item - Cycle 1 | AF17: 10 | AG17: 60
B18: Infusion bag | C18: =IF('Treatment Plan'!$AR$12="No",'Treatment Plan'!planned_cycle*0,1) -> 1 | D18: =SUMIF('Treatment Plan'!$AU$12:$AU$17,"Infusion bag",'Treatment Plan'!$L$12:$L$17)*C18*'Treatment Plan'!no_of_patients -> 50 | E18: ='Pharmacy References'!F13 -> 34 | G18: =(((E18+AK18)*D18)+(IF(D18<>0,($G$34*1/'Treatment Plan'!planned_cycle),0)))/60 -> 53.3341358 | H18: =G18/'Local Assumptions'!$D$31 -> 9.876691815 | I18: =G18/7.5 -> 7.111218107 | AF18: 12 | AG18: 75 | AK18: 30
B19: Syringe | C19: =IF('Treatment Plan'!$AR$12="No",'Treatment Plan'!planned_cycle*0,1) -> 1 | D19: =SUMIF('Treatment Plan'!$AU$12:$AU$17,"Syringe",'Treatment Plan'!$L$12:$L$17)*C19*'Treatment Plan'!no_of_patients -> 0 | E19: ='Pharmacy References'!F24 -> 24 | G19: =(((E19+AK19)*D19)+(IF(D19<>0,($G$34*1/'Treatment Plan'!planned_cycle),0)))/60 -> 0 | H19: =G19/'Local Assumptions'!$D$31 -> 0 | I19: =G19/7.5 -> 0 | AF19: 14 | AG19: 90 | AK19: 0
B20: Ready made syringe | C20: =IF('Treatment Plan'!$AR$12="No",'Treatment Plan'!planned_cycle*0,1) -> 1 | D20: =SUMIF('Treatment Plan'!$AU$12:$AU$17,"Ready made syringe",'Treatment Plan'!$L$12:$L$17)*C20*'Treatment Plan'!no_of_patients -> 0 | E20: ='Pharmacy References'!F31 -> 15 | G20: =((E20+AK20)*D20)/60 -> 0 | H20: =G20/'Local Assumptions'!$D$31 -> 0 | I20: =G20/7.5 -> 0 | AF20: 15 | AG20: 120 | AK20: 0
B21: Ready made infusion bag | C21: =IF('Treatment Plan'!$AR$12="No",'Treatment Plan'!planned_cycle*0,1) -> 1 | D21: =SUMIF('Treatment Plan'!$AU$12:$AU$17,"Ready made infusion bag",'Treatment Plan'!$L$12:$L$17)*C21*'Treatment Plan'!no_of_patients -> 0 | E21: ='Pharmacy References'!F31 -> 15 | G21: =((E21+AK21)*D21)/60 -> 0 | H21: =G21/'Local Assumptions'!$D$31 -> 0 | I21: =G21/7.5 -> 0 | AG21: 150 | AK21: 0
B22: Oral | C22: =IF('Treatment Plan'!$AR$12="No",'Treatment Plan'!planned_cycle*0,1) -> 1 | D22: =SUMIF('Treatment Plan'!AT12:AT17,"Oral",'Treatment Plan'!L12:L17)*C22*'Treatment Plan'!no_of_patients -> 0 | E22: ='Pharmacy References'!F37 -> 10 | G22: =(((E22+AK22)*D22))/60 -> 0 | H22: =G22/'Local Assumptions'!$D$31 -> 0 | I22: N/A | AG22: 180 | AK22: 0
B23: TOTAL MANUFACTURING TIME FOR CYCLE 1 | G23: =IF('Treatment Plan'!$J$44=0,0,(SUM('Pharmacy Capacity'!G18:G22))) -> 53.3341358 | H23: =IF('Treatment Plan'!$J$44=0,0,(SUM('Pharmacy Capacity'!H18:H22))) -> 9.876691815 | I23: =IF('Treatment Plan'!$J$44=0,0,(SUM('Pharmacy Capacity'!I18:I21))) -> 7.111218107
B25: MANUFACTURING - ALL/SUBSEQUENT CYCLES | E25: Step 4 - Select time for manufacturing each item - all/subsequent cycles)
B26: Infusion bag | C26: =IF('Treatment Plan'!$AR$12="No",'Treatment Plan'!planned_cycle,('Treatment Plan'!planned_cycle-1)) -> 17 | D26: =SUMIF('Treatment Plan'!$AU$21:$AU$26,"Infusion bag",'Treatment Plan'!$L$21:$L$26)*C26*'Treatment Plan'!no_of_patients -> 850 | E26: ='Pharmacy References'!F13 -> 34 | G26: =(((E26+AK26)*D26)+(IF(D26<>0,($G$34*C26/'Treatment Plan'!planned_cycle),0)))/60 -> 906.6803086 | H26: =G26/'Local Assumptions'!$D$31 -> 167.9037609 | I26: =G26/7.5 -> 120.8907078 | AK26: 30
B27: Syringe | C27: =IF('Treatment Plan'!$AR$12="No",'Treatment Plan'!planned_cycle,('Treatment Plan'!planned_cycle-1)) -> 17 | D27: =SUMIF('Treatment Plan'!$AU$21:$AU$26,"Syringe",'Treatment Plan'!$L$21:$L$26)*C27*'Treatment Plan'!no_of_patients -> 0 | E27: ='Pharmacy References'!F24 -> 24 | G27: =(((E27+AK27)*D27)+(IF(D27<>0,($G$34*C27/'Treatment Plan'!planned_cycle),0)))/60 -> 0 | H27: =G27/'Local Assumptions'!$D$31 -> 0 | I27: =G27/7.5 -> 0 | AK27: 0
B28: Ready made syringe | C28: =IF('Treatment Plan'!$AR$12="No",'Treatment Plan'!planned_cycle,('Treatment Plan'!planned_cycle-1)) -> 17 | D28: =SUMIF('Treatment Plan'!$AU$21:$AU$26,"Ready made syringe",'Treatment Plan'!$L$21:$L$26)*C28*'Treatment Plan'!no_of_patients -> 0 | E28: ='Pharmacy References'!F31 -> 15 | G28: =((E28+AK28)*D28)/60 -> 0 | H28: =G28/'Local Assumptions'!$D$31 -> 0 | I28: =G28/7.5 -> 0 | AK28: 0
B29: Ready made infusion bag | C29: =IF('Treatment Plan'!$AR$12="No",'Treatment Plan'!planned_cycle,('Treatment Plan'!planned_cycle-1)) -> 17 | D29: =SUMIF('Treatment Plan'!$AU$21:$AU$26,"Ready made infusion bag",'Treatment Plan'!$L$21:$L$26)*C29*'Treatment Plan'!no_of_patients -> 0 | E29: ='Pharmacy References'!F31 -> 15 | G29: =((E29+AK29)*D29)/60 -> 0 | H29: =G29/'Local Assumptions'!$D$31 -> 0 | I29: =G29/7.5 -> 0 | AK29: 0
B30: Oral | C30: =IF('Treatment Plan'!$AR$12="No",'Treatment Plan'!planned_cycle,('Treatment Plan'!planned_cycle-1)) -> 17 | D30: =SUMIF('Treatment Plan'!AT21:AT26,"Oral",'Treatment Plan'!L21:L26)*C30*'Treatment Plan'!no_of_patients -> 0 | E30: ='Pharmacy References'!F37 -> 10 | G30: =(((E30+AK30)*D30))/60 -> 0 | H30: =G30/'Local Assumptions'!$D$31 -> 0 | I30: N/A | AK30: 0
B31: TOTAL MANUFACTURING TIME FOR ALL/SUBSEQUENT CYCLES | G31: =IF('Treatment Plan'!$J$44=0,0,(SUM('Pharmacy Capacity'!G26:G30))) -> 906.6803086 | H31: =IF('Treatment Plan'!$J$44=0,0,(SUM('Pharmacy Capacity'!H26:H30))) -> 167.9037609 | I31: =IF('Treatment Plan'!$J$44=0,0,(SUM('Pharmacy Capacity'!I26:I29))) -> 120.8907078
B33: ISOLATOR CLEANING | E33: Step 5 - Review time assigned for cleaning isolator(s)*
B34: Isolator cleaning time | C34: N/A | D34: 1 | E34: ='Pharmacy References'!F44 -> 52 | F34: N/A | G34: =(D34*E34)/60 -> 0.8666666667 | H34: N/A | I34: N/A
B36: TOTAL PHARMACY RESOURCE REQUIREMENTS FOR THE COHORT | G36: =G10+G15+G23+G31 -> 1022.931111 | H36: =H10+H15+H23+H31 -> 189.4316872 | I36: =I23+I31 -> 128.0019259
B37: *Isolator cleaning time is applied to infusion bags and syringes only.
B39: N/A = Not Applicable
B40: WTE = Whole Time Equivalent

Sheet Nurse Capacity
B2: CALCULATE NURSE CAPACITY
B4: Times in the "Time/cycle/patient" column can be changed using the drop-down buttons. Whole Time Equivalent (WTE) times can be modified by clicking on the hyperlink below. No other figures should be changed on this sheet.
B6: Type of Item/activity | C6: Quantity/patient | D6: Time /cycle/patient for regimen (min) | E6: Total time for cohort (hours) | F6: Staff resource (WTE days) | AA6: Select type | AB6: Infusion bag | AC6: Syringe | AD6: Ready made syringes | AF6: To be hidden in final version | AK6: Column D
B7: CLINICAL REVIEW (NOT INCLUDED IN CHAIR TIME) | D7: Step 1 - Select times for the following clinical review activities | AF7: Checks and Prep times | AG7: Drug admin times | AK7: Linked cells
B8: Check blood tests | C8: N/A | E8: =(AK8*'Treatment Plan'!planned_cycle*'Treatment Plan'!no_of_patients)/60 -> 37.5 | F8: =E8/'Local Assumptions'!$D$31 -> 6.944444444 | AF8: 0 | AG8: 0 | AK8: 5
B9: Administrative tasks | C9: N/A | E9: =(AK9*'Treatment Plan'!planned_cycle*'Treatment Plan'!no_of_patients)/60 -> 75 | F9: =E9/'Local Assumptions'!$D$31 -> 13.88888889 | AF9: 5 | AG9: 1 | AK9: 10
B10: Pre-chemo assessment | C10: N/A | E10: =(AK10*'Treatment Plan'!planned_cycle*'Treatment Plan'!no_of_patients)/60 -> 75 | F10: =E10/'Local Assumptions'!$D$31 -> 13.88888889 | AF10: 10 | AG10: 2 | AK10: 10
B11: Other clinical assessments | C11: N/A | E11: =(AK11*'Treatment Plan'!planned_cycle*'Treatment Plan'!no_of_patients)/60 -> 37.5 | F11: =E11/'Local Assumptions'!$D$31 -> 6.944444444 | AF11: 15 | AG11: 3 | AK11: 5
B12: Total times for clinical review | E12: =IF('Treatment Plan'!$J$44=0,0,(SUM(E8:E11))) -> 225 | F12: =IF('Treatment Plan'!$J$44=0,0,(SUM(F8:F11))) -> 41.66666667 | AF12: 20 | AG12: 4
AF13: 25 | AG13: 5
B14: ADDITIONAL CHECKS/PREPARATION (NOT INCLUDED IN CHAIR TIME) | D14: Step 2 - Select combined time for activities | AF14: 30 | AG14: 6
B15: Cycle 1 | C15: N/A | E15: =IF('Treatment Plan'!$AR$12="No",0,(AK15*'Treatment Plan'!no_of_patients)/60) -> 0 | F15: =E15/'Local Assumptions'!D31 -> 0 | AF15: 45 | AG15: 8 | AK15: 0
B16: Subsequent cycles | C16: N/A | E16: =IF('Treatment Plan'!$AR$12="No", (AK16*'Treatment Plan'!planned_cycle*'Treatment Plan'!no_of_patients)/60,(AK16*('Treatment Plan'!planned_cycle-1)*'Treatment Plan'!no_of_patients)/60) -> 0 | F16: =E16/'Local Assumptions'!D31 -> 0 | AF16: 60 | AG16: 10 | AK16: 0
B17: Total times for additional checks/preparations that do not use chair time | E17: =IF('Treatment Plan'!$J$44=0,0,(SUM(E15:E16))) -> 0 | F17: =IF('Treatment Plan'!$J$44=0,0,(SUM(F15:F16))) -> 0 | AF17: 75 | AG17: 12
AF18: 90 | AG18: 14
B19: PATIENT & EQUIPMENT CHECKS/PREPARATION (INCLUDED IN CHAIR TIME) | D19: Step 3 - Select combined time for this type of activity | AF19: 120 | AG19: 15
B20: Cycle 1 | C20: N/A | E20: =IF('Treatment Plan'!$AR$12="No",0,(AK20*'Treatment Plan'!no_of_patients)/60) -> 0 | F20: =E20/'Local Assumptions'!D31 -> 0 | AF20: 150 | AG20: 20 | AK20: 0
B21: Subsequent cycles | C21: N/A | E21: =IF('Treatment Plan'!$AR$12="No", (AK21*'Treatment Plan'!planned_cycle*'Treatment Plan'!no_of_patients)/60,(AK21*('Treatment Plan'!planned_cycle-1)*'Treatment Plan'!no_of_patients)/60) -> 0 | F21: =E21/'Local Assumptions'!D31 -> 0 | AF21: 180 | AG21: 25 | AK21: 0
B22: Total times for patient & equipment checks/preparation that use chair time | E22: =IF('Treatment Plan'!$J$44=0,0,(SUM(E20:E21))) -> 0 | F22: =IF('Treatment Plan'!$J$44=0,0,(SUM(F20:F21))) -> 0 | AG22: 30
B24: CHEMOTHERAPY DRUG ADMINISTRATION (INCLUDED IN CHAIR TIME) | D24: Step 4 - Select times for drug administration
B25: Oral | C25: =COUNTIF('Treatment Plan'!$AT$21:$AT$26,'Nurse Capacity'!B25) -> 0 | E25: =(C25*AK25*'Treatment Plan'!planned_cycle*'Treatment Plan'!no_of_patients)/60 -> 0 | F25: =E25/'Local Assumptions'!$D$31 -> 0 | AK25: 0
B26: Sub-cut | C26: =COUNTIF('Treatment Plan'!$AT$21:$AT$26,'Nurse Capacity'!B26) -> 0 | E26: =(C26*AK26*'Treatment Plan'!planned_cycle*'Treatment Plan'!no_of_patients)/60 -> 0 | F26: =E26/'Local Assumptions'!$D$31 -> 0 | AK26: 0
B27: Intramuscular | C27: =COUNTIF('Treatment Plan'!$AT$21:$AT$26,'Nurse Capacity'!B27) -> 0 | E27: =(C27*AK27*'Treatment Plan'!planned_cycle*'Treatment Plan'!no_of_patients)/60 -> 0 | F27: =E27/'Local Assumptions'!$D$31 -> 0 | AK27: 0
B28: IV bolus | C28: =COUNTIF('Treatment Plan'!$AT$21:$AT$26,'Nurse Capacity'!B28) -> 0 | E28: =(C28*AK28*'Treatment Plan'!planned_cycle*'Treatment Plan'!no_of_patients)/60 -> 0 | F28: =E28/'Local Assumptions'!$D$31 -> 0 | AK28: 0
B29: IV infusion | C29: =COUNTIF('Treatment Plan'!$AT$21:$AT$26,'Nurse Capacity'!B29) -> 2 | E29: =(C29*AK29*'Treatment Plan'!planned_cycle*'Treatment Plan'!no_of_patients)/60 -> 0 | F29: =E29/'Local Assumptions'!$D$31 -> 0 | AK29: 0
B30: Intrathecal | C30: =COUNTIF('Treatment Plan'!$AT$21:$AT$26,'Nurse Capacity'!B30) -> 0 | E30: =(C30*AK30*'Treatment Plan'!planned_cycle*'Treatment Plan'!no_of_patients)/60 -> 0 | F30: =E30/'Local Assumptions'!$D$31 -> 0 | AK30: 0
B31: Total times for chemotherapy drug administration | E31: =IF('Treatment Plan'!$J$44=0,0,(SUM(E25:E30))) -> 0 | F31: =IF('Treatment Plan'!$J$44=0,0,(SUM(F25:F30))) -> 0 | AK31: 5
B33: TIME SPENT MONITORING PATIENT (INCLUDED IN CHAIR TIME) | D33: Step 5 - Select time the nurse spends with patient | Z33: Variable time | AA33: 5 | AB33: 10 | AC33: 15 | AD33: 30
B34: Cycle 1 | C34: N/A | E34: =IF('Treatment Plan'!$AR$12="No",0,(AK34*'Treatment Plan'!no_of_patients)/60) -> 12.5 | F34: =E34/'Local Assumptions'!$D$31 -> 2.314814815 | AK34: 30
B35: Subsequent cycles | C35: N/A | E35: =IF('Treatment Plan'!$AR$12="No",(AK35*'Treatment Plan'!planned_cycle*'Treatment Plan'!no_of_patients)/60,(AK35*('Treatment Plan'!planned_cycle-1)*'Treatment Plan'!no_of_patients)/60) -> 141.6666667 | F35: =E35/'Local Assumptions'!$D$31 -> 26.2345679 | AK35: 20
B36: Total time spent monitoring patients | E36: =IF('Treatment Plan'!$J$44=0,0,(SUM(E34:E35))) -> 154.1666667 | F36: =IF('Treatment Plan'!$J$44=0,0,(SUM(F34:F35))) -> 28.54938272
B38: TOTALS FOR ACTIVITIES THAT REQUIRE CHAIR TIME | E38: =E22+E31+E36 -> 154.1666667 | F38: =F22+F31+F36 -> 28.54938272
B39: TOTAL NURSE RESOURCE REQUIREMENT FOR THE COHORT | E39: =E12+E17+E22+E31+E36 -> 379.1666667 | F39: =F12+F17+F22+F31+F36 -> 70.21604938 | AK39: 60
AK40: 60

Sheet Chair Capacity
C2: ESTIMATE OF CHAIR CAPACITY
C4: Summary of treatment plan
C5: Drug Type | D5: Items to administer
C6: Oral | D6: ='Nurse Capacity'!C25 -> 0
C7: Sub-cut | D7: ='Nurse Capacity'!C26 -> 0
C8: Intramuscular | D8: ='Nurse Capacity'!C27 -> 0
C9: IV bolus | D9: ='Nurse Capacity'!C28 -> 0
C10: IV infusion | D10: ='Nurse Capacity'!C29 -> 2
C11: Intrathecal | D11: ='Nurse Capacity'!C30 -> 0
C13: Number of patients | D13: ='Treatment Plan'!no_of_patients -> 25
C14: Total time from treatment plan (hours) | D14: ='Treatment Plan'!J43 -> 937.5
C15: Nurse led activities (hours)* | D15: ='Nurse Capacity'!E22+'Nurse Capacity'!E31 -> 0
C19: Total chair occupation time in chemotherapy delivery unit
C21: TOTAL CHAIR TIME REQUIRED FOR THE COHORT (days) | D21: =(D14+D15)/'Local Assumptions'!D7 -> 125
B24: * | C24: The nurse monitoring time is omitted from the calculation of chair time. It is covered within the observation time recorded on the 'Treatment Plan' worksheet and hence is already captured in the "Total time from treatment plan" figure shown on this worksheet.

Sheet drug regimen (hidden)
A2: Clinical Protocol: | E2: XELOX (Oxaliplatin and Capecitabine ) + Cetuximab (Oxaliplatin and Cetuximab - 2hr infusions and Capecitabine as oral)
A4: SW: is 3 drugs typical? More? | F4: Choose Drugs: Route & Recommended Infusion Time
H6: Route | I6: Infusion time or regimen | J6: Route | K6: Infusion Time
F7: Drug 1 | G7: Cetuximab | H7: oral | I7: N/A | J7: IV
G8: (a mab) | H8: IV bolus | I8: N/A
H9: IV subcut | I9: N/A
H10: IV | I10: 60 mins
I11: 120mins
I14: 180 mins
I15: 240 mins
J16: Route | K16: Infusion Time
F17: Drug 2 | G17: Oxaliplatin | H17: oral | I17: N/A | J17: IV | K17: 60 mins
G18: (an IV chemo) | H18: IV bolus | I18: N/A
H19: IV subcut | I19: N/A
H20: IV | I20: 60 mins
I21: 120mins
I23: 180 mins
I25: 240 mins
J26: Route | K26: Infusion Time
F27: Drug 3 | G27: Capecitabine | H27: oral | I27: N/A | J27: oral | K27: N/A
G28: (an oral chemo) | H28: IV bolus | I28: N/A
H29: IV subcut | I29: N/A
H30: IV | I30: 60 mins
I31: 120mins
I32: 180 mins
I33: 240 mins
F34: Choose observation periods
J35: Units | K35: Observation time
F36: Observation time | I36: 60 mins | J36: 1 | K36: 60 mins
I37: 120mins
I38: 180 mins
I39: 240 mins
I40: 240 mins or 4hours
A42: Total protocol time | F42: Puts in Total Time here
I43: put in number here
A46: Cycle length
A47: Number of days (SW to comment)

Sheet Pathway Results
B2: CHEMOTHERAPY PATHWAY - CAPACITY REQUIRED*
D5: This page presents the results of this capacity estimate (pharmacy capacity (WTE and isolator time), oncology nurse capacity and oncology chair time associated with delivery of the regimen you have detailed for the cohort of interest).
E42: Calculate pharmacy capacity (Isolator time and WTE) | U42: Calculate oncology nurse capacity | AD42: Calculate oncology chair time
D45: Staff Resource (WTE days) | I45: ='Pharmacy Capacity'!H36 -> 189.4316872 | V45: Staff Resource (WTE days) | AA45: ='Nurse Capacity'!F39 -> 70.21604938 | AD45: Chair time (days) | AH45: ='Chair Capacity'!$D$21 -> 125
D46: Staff Resource (WTE Equivalent) | I46: =I45/365 -> 0.518990924 | V46: Staff Resource (WTE Equivalent) | AA46: =AA45/365 -> 0.192372738 | AD46: Chair time (per week) | AH46: ='Chair Capacity'!$D$21 -> 125
D47: Isolator time (days) | I47: ='Pharmacy Capacity'!I36 -> 128.0019259
C51: WTE = Whole Time Equivalent
B53: Key
D55: Areas of the pathway where capacity will be calculated
D57: Areas of the pathway that will NOT be included in the capacity calculations
A61: * | B61: Sample pathway as described in the draft NHS standard specification template for adult systemic anti-cancer therapy services, December 2012.
B62: https://www.engage.england.nhs.uk/consultation/ssc-area-b/supporting_documents/b3lservicespec.pdf
B63: Accessed January 2015
B65: For current service specification refer to NHS England Chemotherapy CRG webpage.
B66: http://www.england.nhs.uk/commissioning/spec-services/npc-crg/group-b/b15/
B67: Acessed January 2015

Sheet Results Table
B4: RESULTS TABLE
C7: Enter the Title of the New Chemotherapy Regimen
D9: Staff Resource (WTE days) | E9: Staff Resource (WTE equivalent) | F9: Isolator Time (days) | G9: Chair Time (days) | H9: Chair Time Hours Per week
C10: PHARMACY | D10: ='Pharmacy Capacity'!H36 -> 189.4316872 | E10: =D10/365 -> 0.518990924 | F10: ='Pharmacy Capacity'!I36 -> 128.0019259 | G10: N/A | H10: N/A
C11: NURSE | D11: ='Nurse Capacity'!F39 -> 70.21604938 | E11: =D11/365 -> 0.192372738 | F11: N/A | G11: N/A | H11: N/A
C12: FACILITIES | D12: N/A | E12: N/A | F12: N/A | G12: ='Chair Capacity'!D21 -> 125 | H12: =G12/52*7.5 -> 18.02884615
C13: TOTAL | D13: =SUM(D10:D12) -> 259.6477366 | E13: 0.711363662 | F13: =SUM(F10:F12) -> 128.0019259 | G13: =SUM(G12) -> 125 | H13: =SUM(H12) -> 18.02884615
C14: WTE = Whole Time Equivalent

Sheet Local Assumptions
B3: LOCAL ASSUMPTIONS
D6: Available time (hours)
B7: Average opening time for chemotherapy unit | D7: 7.5
B10: Average opening time for pharmacy unit | D10: 7.5
B13: Fixed time for pharmacy staff
B14: Assistants | D14: 27.3
B15: Pharmacists | D15: 27.3
B16: Technicians | D16: 27.3
B18: Fixed time for chemotherapy nursing staff
B19: Chemotherapy-trained nurse | D19: 27.3
B21: Fixed time for oncology clinic staff
B22: Nurses | D22: 27.3
B23: Oncologists | D23: 27.3
B25: WTE calculations
B26: 1 whole time equivalent is 37.5 hours per week (or 2250 mins per week)
B27: Deduct 40 mins per day (2X20 min breaks) (-200 mins/week)
B28: Deduct 20% for holidays, sickness, training etc.
B29: 1 WTE =27.3 hrs/week or 5.4 hours per day
B31: Change hours worked / day | D31: 5.4 | E31: Whole Time Equivalent (WTE)

Sheet Pharmacy References
B2: GUIDANCE ON FIXED TIMES FOR PHARMACY*
B4: Time taken per infusion (mins)
B5: Task | C5: Assistant | D5: Technician | E5: Pharmacist | F5: Total
B6: Clinical Check | E6: 5 | F6: =SUM(C6:E6) -> 5
B7: Workhseet & labels | D7: 10 | F7: =SUM(C7:E7) -> 10
B8: Setting Up | C8: 5 | F8: =SUM(C8:E8) -> 5
B9: Checking Ingredients | D9: 2 | F9: =SUM(C9:E9) -> 2
B10: Transfer | C10: 5 | F10: 5
B11: Labelling, Final Check, Release | E11: 5 | F11: 5
B12: Delivery | C12: 2 | F12: 2
B13: TOTAL (mins) | C13: =SUM(C6:C12) -> 12 | D13: =SUM(D6:D12) -> 12 | E13: =SUM(E6:E12) -> 10 | F13: =SUM(F6:F12) -> 34
B15: Time taken per syringe (mins)
B16: Task | C16: Assistant | D16: Technician | E16: Pharmacist | F16: Total
B17: Clinical Check | E17: 4 | F17: =SUM(C17:E17) -> 4
B18: Worksheet & labels | D18: 6 | F18: =SUM(C18:E18) -> 6
B19: Setting Up | C19: 4 | F19: 4
B20: Checking Ingredients | D20: 2 | F20: 2
B21: Transfer | C21: 4 | F21: 4
B22: Labelling, Final Check, Release | E22: 2 | F22: 2
B23: Delivery | C23: 2 | F23: 2
B24: TOTAL (mins) | C24: =SUM(C17:C23) -> 10 | D24: =SUM(D17:D23) -> 8 | E24: =SUM(E17:E23) -> 6 | F24: =SUM(F17:F23) -> 24
B26: Time taken per ready made item (mins)
B27: Task | C27: Assistant | D27: Technician | E27: Pharmacist | F27: Total
B28: Release | E28: 5 | F28: =SUM(C28:E28) -> 5
B29: Dispensing & labelling | C29: 5 | F29: 5
B30: Final Check | E30: 5 | F30: 5
B31: TOTAL (mins) | C31: =SUM(C28:C30) -> 5 | D31: =SUM(D28:D30) -> 0 | E31: =SUM(E28:E30) -> 10 | F31: =SUM(F28:F30) -> 15
B33: Time taken per oral drug (mins)
B34: Task | C34: Assistant | D34: Technician | E34: Pharmacist | F34: Total
B35: Dispensing & Labelling | D35: 7 | F35: =SUM(C35:E35) -> 7
B36: Final Check | E36: 3 | F36: 3
B37: TOTAL (mins) | C37: =SUM(C35:C36) -> 0 | D37: =SUM(D35:D36) -> 7 | E37: =SUM(E35:E36) -> 3 | F37: =SUM(F35:F36) -> 10
B39: Isolator cleaning time (mins)
B40: Task | C40: Assistant | D40: Technician | E40: Pharmacist | F40: Total
B41: Initial Clean of Isolator | D41: 15 | F41: =SUM(C41:E41) -> 15
B42: Final Clean of Isolator | D42: 22 | F42: =SUM(C42:E42) -> 22
B43: Environmental Monitoring | C43: 15 | F43: 15
B44: TOTAL (mins) | C44: =SUM(C41:C43) -> 15 | D44: =SUM(D41:D43) -> 37 | E44: =SUM(E41:E43) -> 0 | F44: =SUM(F41:F43) -> 52
B45: *The data shown above has been collated by Steve Williamson, Consultant Cancer Pharmacist , Northumbria Healthcare / Cumbria, Northumberland, Tyne & Wear Area Team, NHS England

Sheet Activity Tariffs
B3: UNBUNDLED HRGs FOR CHEMOTHERAPY DELIVERY FOR REGIMENS ON THE NATIONAL LIST*
B5: This sheet generates the likely tariff costs for delivering unbundled HRGs for chemotherapy delivery for regimens on the national list. If the chemotherapy regimen being delivered is not on the national list, this sheet will not apply and please use code SB17Z and local tariff information.
B10: All oral regimen - Tariff for cohort
D11: HRG4 Code | E11: Total tariff for cohort (£) | AA11: Selection | AF11: Linked Cells
A12: Step 1 | B12: Is the regimen exclusively oral chemotherapy? | D12: =IF(AF12="Yes","SB11Z","Go to Step 2") -> Go to Step 2 | E12: =IF(AF12="Yes",'Tariff Information'!D5*'Treatment Plan'!planned_cycle*'Treatment Plan'!no_of_patients,"Go to Step 2") -> Go to Step 2 | L12: PREVIOUS | AA12: Yes | AF12: No
C13: If yes, the following steps do not apply | L13: No | AA13: No
B14: Parenteral -Tariff for Cycle 1 cohort
B16: Please select only one Yes
E17: Tariff for cycle one for cohort (£)
A18: Step 2 | B18: Is Cycle 1 simple parenteral chemotherapy? | D18: =IF(AF18="Yes","SB12Z","Go to Step 3") -> Go to Step 3 | E18: =IF(AF18="Yes",'Tariff Information'!D6*'Treatment Plan'!no_of_patients,"Go to Step 3") -> Go to Step 3 | AF18: No | AH18: =IF(AF18="Yes",E18,0) -> 0
E21: Tariff for cycle one for cohort (£)
A22: Step 3 | B22: Is Cycle 1 complex parenteral chemotherapy? | D22: =IF(AF22="Yes","SB13Z","Go to Step 4") -> SB13Z | E22: =IF(AF22="Yes",'Tariff Information'!D7*'Treatment Plan'!no_of_patients,"Go to Step 4") -> 7475 | AF22: Yes | AH22: =IF(AF22="Yes",E22,0) -> 7475
E25: Tariff for cycle one for cohort (£)
A26: Step 4 | B26: Is Cycle 1 complex parenteral chemotherapy, including prolonged infusion treatment at first attendance? | D26: =IF(AF26="Yes","SB14Z","Go to Results") -> SB14Z | E26: =IF(AF26="Yes",'Tariff Information'!D8*'Treatment Plan'!no_of_patients,"Go to Results") -> 11225 | AF26: Yes | AH26: =IF(AF26="Yes",E26,0) -> 11225
B29: Parenteral -Tariff for subsequent cycles for cohort
A30: Results
B31: Cost for delivering subsequent cycles of chemotherapy (SB15Z) | E31: =IF('Treatment Plan'!$J$44=0,0,IF(AF12="Yes",0,('Tariff Information'!D9*('Treatment Plan'!planned_cycle-1)*'Treatment Plan'!no_of_patients))) -> 127075
B33: Total national activity tariff for cohort (all cycles) | E33: =IF('Treatment Plan'!$J$44=0,0,IF(AF12="Yes",0,SUM(AH18:AH26,E31))) -> 145775
B35: *Reference 2017/18 and 2018/19 National Tariff Payment System, Available at
B36: https://improvement.nhs.uk/resources/national-tariff-1719/
B37: Last Accessed 16 April 2018
B39: VARIABLE TARIFF CALCULATOR
B41: Total cycles of chemotherapy for cohort | E41: ='Treatment Plan'!planned_cycle*'Treatment Plan'!no_of_patients -> 450
B43: Chemotherapy preparation tariff | E43: 0 | J43: NEXT
B45: Total variable tariff for the cohort (£) | E45: =E43*$E$41 -> 0

Sheet Tariff Information
B2: DETAILS OF CHEMOTHERAPY COSTS (from the National tariff payment system 2018/19 - Annex A Spreadsheet Tab, 4c Unbundled prices 18.19)
B4: HRG code | C4: HRG name | D4: Tariff (£)
B5: SB11Z | C5: Deliver Exclusively Oral Chemotherapy | D5: 120
B6: SB12Z | C6: Deliver Simple Parenteral Chemotherapy at first attendance | D6: 150
B7: SB13Z | C7: Deliver more Complex Parenteral Chemotherapy at first attendance | D7: 299
B8: SB14Z | C8: Deliver Complex Chemotherapy, including Prolonged Infusion Treatment at first attendance | D8: 449
B9: SB15Z | C9: Deliver Subsequent Elements of a Chemotherapy Cycle | D9: 299
B10: SB17Z | C10: Deliver Chemotherapy for Regimens not on the National List | D10: -
B14: Reference 2017/18 and 2018/19 National Tariff Payment System, Available at
B15: https://improvement.nhs.uk/resources/national-tariff-1719/
B16: Last Accessed 16 April 2018
